fUSD/lending_fUSD_20260621
["ID","MTS","AMOUNT","RATE_DAILY","PERIOD"]
[425931525,1782037869000,-986.57,0.00028219,2]
[425931534,1782037869000,-500.0,0.00028219,2]
[425931528,1782037869000,-500.0,0.00028219,2]
[425931529,1782037869000,-500.0,0.00028219,2]
[425931526,1782037869000,-500.0,0.00028219,2]
[425931536,1782037869000,-500.0,0.00028219,2]
[425931532,1782037869000,-500.0,0.00028219,2]
[425931530,1782037869000,-500.0,0.00028219,2]
[425931531,1782037869000,-308.78079043,0.00028219,2]
[425931535,1782037869000,-500.0,0.00028219,2]
[425931538,1782037869000,-500.0,0.00028219,2]
[425931540,1782037869000,-151.0,0.00028219,7]
[425931511,1782037869000,-500.0,0.00028219,2]
[425931527,1782037869000,-500.0,0.00028219,2]
[425931510,1782037869000,-500.0,0.00028219,2]
[425931489,1782037869000,-500.0,0.00028219,2]
[425931512,1782037869000,-500.0,0.00028219,2]
[425931486,1782037869000,-500.0,0.00028219,2]
[425931487,1782037869000,-865.71,0.00028219,2]
[425931485,1782037869000,-500.0,0.00028219,2]
[425931488,1782037869000,-500.0,0.00028219,2]
[425931484,1782037869000,-547.54,0.00028219,2]
[425931539,1782037869000,-500.0,0.00028219,2]
[425931494,1782037869000,-500.0,0.00028219,2]
[425931501,1782037869000,-500.0,0.00028219,2]
[425931491,1782037869000,-500.0,0.00028219,2]
[425931490,1782037869000,-500.0,0.00028219,2]
[425931493,1782037869000,-1112.44,0.00028219,2]
[425931492,1782037869000,-882.43,0.00028219,2]
[425931509,1782037869000,-500.0,0.00028219,2]
[425931500,1782037869000,-689.94,0.00028219,2]
[425931495,1782037869000,-882.02,0.00028219,2]
[425931496,1782037869000,-500.0,0.00028219,2]
[425931497,1782037869000,-660.08,0.00028219,2]
[425931498,1782037869000,-1005.32,0.00028219,2]
[425931504,1782037869000,-1075.1,0.00028219,2]
[425931502,1782037869000,-500.0,0.00028219,2]
[425931503,1782037869000,-500.0,0.00028219,2]
[425931513,1782037869000,-500.0,0.00028219,2]
[425931505,1782037869000,-526.4,0.00028219,2]
[425931507,1782037869000,-384.46019677,0.00028219,2]
[425931506,1782037869000,-4702.75,0.00028219,2]
[425931508,1782037869000,-500.0,0.00028219,2]
[425931499,1782037869000,-500.0,0.00028219,2]
[425931548,1782037869000,-500.0,0.00028219,2]
[425931533,1782037869000,-500.0,0.00028219,2]
[425931541,1782037869000,-500.0,0.00028219,2]
[425931574,1782037869000,-500.0,0.00028219,2]
[425931576,1782037869000,-500.0,0.00028219,2]
[425931580,1782037869000,-500.0,0.00028219,2]
[425931581,1782037869000,-824.86,0.00028219,2]
[425931575,1782037869000,-500.0,0.00028219,2]
[425931579,1782037869000,-500.0,0.00028219,2]
[425931573,1782037869000,-500.0,0.00028219,2]
[425931577,1782037869000,-500.0,0.00028219,2]
[425931578,1782037869000,-500.0,0.00028219,2]
[425931582,1782037869000,-500.0,0.00028219,2]
[425931583,1782037869000,-500.0,0.00028219,2]
[425931585,1782037869000,-500.0,0.00028219,2]
[425931587,1782037869000,-500.0,0.00028219,2]
[425931588,1782037869000,-254.60551309,0.00028219,2]
[425931586,1782037869000,-526.49755517,0.00028219,2]
[425931589,1782037869000,-539.15,0.00028219,2]
[425931593,1782037869000,-500.0,0.00028219,2]
[425931591,1782037869000,-819.6,0.00028219,2]
[425931592,1782037869000,-500.0,0.00028219,2]
[425931590,1782037869000,-500.0,0.00028219,2]
[425931594,1782037869000,-500.0,0.00028219,2]
[425931597,1782037869000,-187.2,0.00028219,19]
[425931596,1782037869000,-2854.248,0.00028219,19]
[425931595,1782037869000,-500.0,0.00028219,2]
[425931537,1782037869000,-500.0,0.00028219,2]
[425931572,1782037869000,-2926.49,0.00028219,2]
[425931570,1782037869000,-500.0,0.00028219,2]
[425931584,1782037869000,-500.0,0.00028219,2]
[425931568,1782037869000,-933.57,0.00028219,2]
[425931542,1782037869000,-3968.18,0.00028219,2]
[425931567,1782037869000,-500.0,0.00028219,2]
[425931543,1782037869000,-500.0,0.00028219,2]
[425931547,1782037869000,-643.45481538,0.00028219,2]
[425931546,1782037869000,-500.0,0.00028219,2]
[425931545,1782037869000,-903.99,0.00028219,2]
[425931544,1782037869000,-500.0,0.00028219,2]
[425931549,1782037869000,-500.0,0.00028219,2]
[425931551,1782037869000,-500.0,0.00028219,2]
[425931550,1782037869000,-500.0,0.00028219,2]
[425931556,1782037869000,-155.559837,0.00028219,7]
[425931555,1782037869000,-500.0,0.00028219,2]
[425931557,1782037869000,-500.0,0.00028219,2]
[425931552,1782037869000,-500.0,0.00028219,2]
[425931562,1782037869000,-500.0,0.00028219,2]
[425931569,1782037869000,-500.0,0.00028219,2]
[425931554,1782037869000,-500.0,0.00028219,2]
[425931566,1782037869000,-500.0,0.00028219,2]
[425931563,1782037869000,-500.0,0.00028219,2]
[425931565,1782037869000,-500.0,0.00028219,2]
[425931560,1782037869000,-500.0,0.00028219,2]
[425931564,1782037869000,-500.0,0.00028219,2]
[425931561,1782037869000,-500.0,0.00028219,2]
[425931559,1782037869000,-500.0,0.00028219,2]
[425931553,1782037869000,-515.32,0.00028219,2]
[425931558,1782037869000,-500.0,0.00028219,2]
[425931571,1782037869000,-500.0,0.00028219,2]
[425931637,1782037870000,-500.0,0.00028219,2]
[425931640,1782037870000,-500.0,0.00028219,2]
[425931638,1782037870000,-500.0,0.00028219,2]
[425931636,1782037870000,-500.0,0.00028219,2]
[425931639,1782037870000,-500.0,0.00028219,2]
[425931629,1782037870000,-590.33,0.00028219,2]
[425931656,1782037870000,-515.73,0.00028219,2]
[425931633,1782037870000,-500.0,0.00028219,2]
[425931632,1782037870000,-500.0,0.00028219,2]
[425931631,1782037870000,-500.0,0.00028219,2]
[425931641,1782037870000,-500.0,0.00028219,2]
[425931635,1782037870000,-500.0,0.00028219,2]
[425931642,1782037870000,-500.0,0.00028219,2]
[425931653,1782037870000,-500.0,0.00028219,2]
[425931650,1782037870000,-500.0,0.00028219,2]
[425931644,1782037870000,-500.0,0.00028219,2]
[425931651,1782037870000,-1398.44,0.00028219,2]
[425931643,1782037870000,-760.72,0.00028219,2]
[425931645,1782037870000,-500.0,0.00028219,2]
[425931646,1782037870000,-500.0,0.00028219,2]
[425931648,1782037870000,-869.83,0.00028219,2]
[425931652,1782037870000,-500.0,0.00028219,2]
[425931647,1782037870000,-791.91,0.00028219,2]
[425931664,1782037870000,-2086.7,0.00028219,2]
[425931654,1782037870000,-500.0,0.00028219,2]
[425931630,1782037870000,-500.0,0.00028219,2]
[425931649,1782037870000,-427.02574878,0.00028219,2]
[425931624,1782037870000,-500.0,0.00028219,2]
[425931601,1782037870000,-1143.85,0.00028219,2]
[425931628,1782037870000,-500.0,0.00028219,2]
[425931598,1782037870000,-500.0,0.00028219,2]
[425931599,1782037870000,-500.0,0.00028219,2]
[425931602,1782037870000,-500.0,0.00028219,2]
[425931603,1782037870000,-500.0,0.00028219,2]
[425931600,1782037870000,-500.0,0.00028219,2]
[425931604,1782037870000,-500.0,0.00028219,2]
[425931606,1782037870000,-500.0,0.00028219,2]
[425931607,1782037870000,-500.0,0.00028219,2]
[425931605,1782037870000,-500.0,0.00028219,2]
[425931616,1782037870000,-500.0,0.00028219,2]
[425931609,1782037870000,-500.0,0.00028219,2]
[425931608,1782037870000,-500.0,0.00028219,2]
[425931611,1782037870000,-500.0,0.00028219,2]
[425931614,1782037870000,-42571.055771,0.00028219,2]
[425931613,1782037870000,-500.0,0.00028219,2]
[425931612,1782037870000,-500.0,0.00028219,2]
[425931615,1782037870000,-1325.61,0.00028219,2]
[425931610,1782037870000,-500.0,0.00028219,2]
[425931617,1782037870000,-500.0,0.00028219,2]
[425931619,1782037870000,-500.0,0.00028219,2]
[425931618,1782037870000,-500.0,0.00028219,2]
[425931621,1782037870000,-500.0,0.00028219,2]
[425931622,1782037870000,-592.99,0.00028219,2]
[425931627,1782037870000,-500.0,0.00028219,2]
[425931626,1782037870000,-836.69,0.00028219,2]
[425931623,1782037870000,-500.0,0.00028219,2]
[425931620,1782037870000,-500.0,0.00028219,2]
[425931625,1782037870000,-500.0,0.00028219,2]
[425931661,1782037870000,-2010.0,0.00028219,2]
[425931634,1782037870000,-500.0,0.00028219,2]
[425931659,1782037870000,-3841.84,0.00028219,2]
[425931691,1782037870000,-500.0,0.00028219,2]
[425931693,1782037870000,-500.0,0.00028219,2]
[425931696,1782037870000,-427.82179822,0.00028219,2]
[425931694,1782037870000,-500.0,0.00028219,2]
[425931695,1782037870000,-500.0,0.00028219,2]
[425931698,1782037870000,-500.0,0.00028219,2]
[425931699,1782037870000,-500.0,0.00028219,2]
[425931697,1782037870000,-608.71,0.00028219,2]
[425931692,1782037870000,-500.0,0.00028219,2]
[425931700,1782037870000,-853.67,0.00028219,2]
[425931702,1782037870000,-6740.75,0.00028219,2]
[425931701,1782037870000,-271.0091866,0.00028219,2]
[425931704,1782037870000,-584.87,0.00028219,2]
[425931714,1782037870000,-500.0,0.00028219,2]
[425931703,1782037870000,-606.08,0.00028219,2]
[425931705,1782037870000,-4370.8,0.00028219,2]
[425931707,1782037870000,-500.0,0.00028219,2]
[425931706,1782037870000,-500.0,0.00028219,2]
[425931710,1782037870000,-500.0,0.00028219,2]
[425931712,1782037870000,-736.37,0.00028219,2]
[425931709,1782037870000,-4952.69,0.00028219,2]
[425931711,1782037870000,-863.82,0.00028219,2]
[425931713,1782037870000,-500.0,0.00028219,2]
[425931716,1782037870000,-500.0,0.00028219,2]
[425931715,1782037870000,-500.0,0.00028219,2]
[425931717,1782037870000,-500.0,0.00028219,2]
[425931662,1782037870000,-500.0,0.00028219,2]
[425931687,1782037870000,-500.0,0.00028219,2]
[425931683,1782037870000,-1000.0,0.00028219,2]
[425931708,1782037870000,-500.0,0.00028219,2]
[425931686,1782037870000,-500.0,0.00028219,2]
[425931688,1782037870000,-500.0,0.00028219,2]
[425931658,1782037870000,-500.0,0.00028219,2]
[425931660,1782037870000,-500.0,0.00028219,2]
[425931663,1782037870000,-500.0,0.00028219,2]
[425931657,1782037870000,-500.0,0.00028219,2]
[425931665,1782037870000,-500.0,0.00028219,2]
[425931669,1782037870000,-500.0,0.00028219,2]
[425931667,1782037870000,-3292.77,0.00028219,2]
[425931670,1782037870000,-500.0,0.00028219,2]
[425931671,1782037870000,-4255.92,0.00028219,2]
[425931668,1782037870000,-500.0,0.00028219,2]
[425931674,1782037870000,-1744.77,0.00028219,2]
[425931676,1782037870000,-500.0,0.00028219,2]
[425931655,1782037870000,-500.0,0.00028219,2]
[425931666,1782037870000,-500.0,0.00028219,2]
[425931677,1782037870000,-757.98,0.00028219,2]
[425931678,1782037870000,-500.0,0.00028219,2]
[425931684,1782037870000,-500.0,0.00028219,2]
[425931680,1782037870000,-500.0,0.00028219,2]
[425931685,1782037870000,-958.6,0.00028219,2]
[425931681,1782037870000,-500.0,0.00028219,2]
[425931682,1782037870000,-500.0,0.00028219,2]
[425931690,1782037870000,-500.0,0.00028219,2]
[425931689,1782037870000,-1205.38,0.00028219,2]
[425931679,1782037870000,-1345.44,0.00028219,2]
[425931672,1782037870000,-500.0,0.00028219,2]
[425931675,1782037870000,-286.74291555,0.00028219,2]
[425931673,1782037870000,-5206.76,0.00028219,2]
[425931739,1782037871000,-500.0,0.00028219,2]
[425931745,1782037871000,-500.0,0.00028219,2]
[425931747,1782037871000,-896.49,0.00028219,2]
[425931751,1782037871000,-6334.76,0.00028219,2]
[425931754,1782037871000,-500.0,0.00028219,2]
[425931752,1782037871000,-179.60050284,0.00028219,2]
[425931746,1782037871000,-500.0,0.00028219,2]
[425931753,1782037871000,-500.0,0.00028219,2]
[425931742,1782037871000,-9364.89,0.00028219,2]
[425931748,1782037871000,-6679.24,0.00028219,2]
[425931756,1782037871000,-6938.43,0.00028219,2]
[425931750,1782037871000,-500.0,0.00028219,2]
[425931755,1782037871000,-500.0,0.00028219,2]
[425931759,1782037871000,-500.0,0.00028219,2]
[425931760,1782037871000,-1204.631058,0.00028219,7]
[425931762,1782037871000,-5735.18,0.00028219,2]
[425931764,1782037871000,-2630.75,0.00028219,2]
[425931758,1782037871000,-1204.631058,0.00028219,7]
[425931741,1782037871000,-500.0,0.00028219,2]
[425931763,1782037871000,-1204.631058,0.00028219,7]
[425931749,1782037871000,-500.0,0.00028219,2]
[425931744,1782037871000,-500.0,0.00028219,2]
[425931727,1782037871000,-500.0,0.00028219,2]
[425931740,1782037871000,-500.0,0.00028219,2]
[425931757,1782037871000,-500.0,0.00028219,2]
[425931723,1782037871000,-500.0,0.00028219,2]
[425931720,1782037871000,-500.0,0.00028219,2]
[425931718,1782037871000,-367.84111927,0.00028219,2]
[425931724,1782037871000,-500.0,0.00028219,2]
[425931719,1782037871000,-500.0,0.00028219,2]
[425931722,1782037871000,-3874.02,0.00028219,2]
[425931725,1782037871000,-500.0,0.00028219,2]
[425931721,1782037871000,-500.0,0.00028219,2]
[425931726,1782037871000,-500.0,0.00028219,2]
[425931737,1782037871000,-500.0,0.00028219,2]
[425931729,1782037871000,-509.56,0.00028219,2]
[425931733,1782037871000,-500.0,0.00028219,2]
[425931728,1782037871000,-500.0,0.00028219,2]
[425931736,1782037871000,-6091.66,0.00028219,2]
[425931735,1782037871000,-606.62,0.00028219,2]
[425931730,1782037871000,-747.29,0.00028219,2]
[425931731,1782037871000,-3344.59,0.00028219,2]
[425931732,1782037871000,-6285.21,0.00028219,2]
[425931734,1782037871000,-237.30265246,0.00028219,2]
[425931738,1782037871000,-690.61,0.00028219,2]
[425931743,1782037871000,-5030.0,0.00028219,2]
[425931761,1782037871000,-746.08,0.00028219,2]
[425931768,1782037871000,-1204.631058,0.00028219,7]
[425931767,1782037871000,-560.49,0.00028219,2]
[425931789,1782037871000,-4656.76,0.00028219,2]
[425931792,1782037871000,-500.0,0.00028219,2]
[425931798,1782037871000,-500.0,0.00028219,2]
[425931795,1782037871000,-7163.35,0.00028219,2]
[425931794,1782037871000,-1180.04,0.00028219,2]
[425931796,1782037871000,-500.0,0.00028219,2]
[425931797,1782037871000,-1301.74,0.00028219,2]
[425931793,1782037871000,-9528.18,0.00028219,2]
[425931799,1782037871000,-3935.77,0.00028219,2]
[425931803,1782037871000,-1073.5,0.00028219,2]
[425931802,1782037871000,-922.78,0.00028219,2]
[425931804,1782037871000,-500.0,0.00028219,2]
[425931809,1782037871000,-5836.17,0.00028219,2]
[425931801,1782037871000,-202.03523397,0.00028219,2]
[425931810,1782037871000,-500.0,0.00028219,2]
[425931806,1782037871000,-1451.53,0.00028219,2]
[425931807,1782037871000,-9999.22,0.00028219,2]
[425931808,1782037871000,-500.0,0.00028219,2]
[425931811,1782037871000,-500.0,0.00028219,2]
[425931812,1782037871000,-500.0,0.00028219,2]
[425931765,1782037871000,-500.0,0.00028219,2]
[425931800,1782037871000,-500.0,0.00028219,2]
[425931791,1782037871000,-523.3,0.00028219,2]
[425931805,1782037871000,-288.39198991,0.00028219,2]
[425931787,1782037871000,-500.0,0.00028219,2]
[425931790,1782037871000,-500.0,0.00028219,2]
[425931770,1782037871000,-420.423312,0.00028219,2]
[425931766,1782037871000,-4885.48,0.00028219,2]
[425931777,1782037871000,-13019.17,0.00028219,2]
[425931769,1782037871000,-500.0,0.00028219,2]
[425931771,1782037871000,-8907.33,0.00028219,2]
[425931773,1782037871000,-7097.95,0.00028219,2]
[425931772,1782037871000,-500.0,0.00028219,2]
[425931776,1782037871000,-662.83,0.00028219,2]
[425931775,1782037871000,-500.0,0.00028219,2]
[425931774,1782037871000,-10103.93,0.00028219,2]
[425931779,1782037871000,-500.0,0.00028219,2]
[425931781,1782037871000,-10443.29,0.00028219,2]
[425931782,1782037871000,-8253.82,0.00028219,2]
[425931786,1782037871000,-500.0,0.00028219,2]
[425931778,1782037871000,-500.0,0.00028219,2]
[425931780,1782037871000,-1501.04,0.00028219,2]
[425931784,1782037871000,-4071.99,0.00028219,2]
[425931788,1782037871000,-500.0,0.00028219,2]
[425931785,1782037871000,-500.0,0.00028219,2]
[425931783,1782037871000,-1115.01,0.00028219,2]
[425931846,1782037872000,-500.0,0.00028219,2]
[425931850,1782037872000,-3382.74,0.00028219,2]
[425931849,1782037872000,-500.0,0.00028219,2]
[425931858,1782037872000,-6386.84,0.00028219,2]
[425931857,1782037872000,-1221.43,0.00028219,2]
[425931843,1782037872000,-831.38,0.00028219,2]
[425931845,1782037872000,-500.0,0.00028219,2]
[425931844,1782037872000,-521.32,0.00028219,2]
[425931842,1782037872000,-6319.14,0.00028219,2]
[425931848,1782037872000,-500.0,0.00028219,2]
[425931847,1782037872000,-798.82,0.00028219,2]
[425931852,1782037872000,-500.0,0.00028219,2]
[425931861,1782037872000,-8696.2,0.00028219,2]
[425931853,1782037872000,-3846.12,0.00028219,2]
[425931854,1782037872000,-500.0,0.00028219,2]
[425931855,1782037872000,-272.01582034,0.00028219,2]
[425931851,1782037872000,-500.0,0.00028219,2]
[425931860,1782037872000,-500.0,0.00028219,2]
[425931870,1782037872000,-500.0,0.00028219,2]
[425931859,1782037872000,-500.0,0.00028219,2]
[425931866,1782037872000,-4194.76,0.00028219,2]
[425931862,1782037872000,-624.23,0.00028219,2]
[425931863,1782037872000,-500.0,0.00028219,2]
[425931839,1782037872000,-8742.6,0.00028219,2]
[425931856,1782037872000,-500.0,0.00028219,2]
[425931836,1782037872000,-611.44,0.00028219,2]
[425931818,1782037872000,-500.0,0.00028219,2]
[425931841,1782037872000,-4906.25,0.00028219,2]
[425931867,1782037872000,-10625.36,0.00028219,2]
[425931813,1782037872000,-500.0,0.00028219,2]
[425931816,1782037872000,-500.0,0.00028219,2]
[425931817,1782037872000,-1479.66,0.00028219,2]
[425931815,1782037872000,-500.0,0.00028219,2]
[425931819,1782037872000,-730.93,0.00028219,2]
[425931814,1782037872000,-4485.52,0.00028219,2]
[425931820,1782037872000,-500.0,0.00028219,2]
[425931821,1782037872000,-500.0,0.00028219,2]
[425931823,1782037872000,-500.0,0.00028219,2]
[425931834,1782037872000,-500.0,0.00028219,2]
[425931822,1782037872000,-500.0,0.00028219,2]
[425931833,1782037872000,-7741.98,0.00028219,2]
[425931824,1782037872000,-500.0,0.00028219,2]
[425931825,1782037872000,-869.85,0.00028219,2]
[425931830,1782037872000,-9276.24,0.00028219,2]
[425931831,1782037872000,-7069.12,0.00028219,2]
[425931826,1782037872000,-500.0,0.00028219,2]
[425931828,1782037872000,-3337.66,0.00028219,2]
[425931827,1782037872000,-5736.86,0.00028219,2]
[425931829,1782037872000,-500.0,0.00028219,2]
[425931832,1782037872000,-656.66,0.00028219,2]
[425931835,1782037872000,-500.0,0.00028219,2]
[425931837,1782037872000,-500.0,0.00028219,2]
[425931838,1782037872000,-500.0,0.00028219,2]
[425931840,1782037872000,-500.0,0.00028219,2]
[425931864,1782037872000,-4404.74,0.00028219,2]
[425931869,1782037872000,-500.0,0.00028219,2]
[425931865,1782037872000,-578.26,0.00028219,2]
[425931903,1782037872000,-500.0,0.00028219,2]
[425931895,1782037872000,-500.0,0.00028219,2]
[425931900,1782037872000,-500.0,0.00028219,2]
[425931902,1782037872000,-500.0,0.00028219,2]
[425931901,1782037872000,-500.0,0.00028219,2]
[425931915,1782037872000,-500.0,0.00028219,2]
[425931905,1782037872000,-500.0,0.00028219,2]
[425931904,1782037872000,-1027.88,0.00028219,2]
[425931908,1782037872000,-4764.69,0.00028219,2]
[425931906,1782037872000,-500.0,0.00028219,2]
[425931914,1782037872000,-500.0,0.00028219,2]
[425931907,1782037872000,-500.0,0.00028219,2]
[425931913,1782037872000,-4040.17,0.00028219,2]
[425931909,1782037872000,-3597.01,0.00028219,2]
[425931910,1782037872000,-1155.12,0.00028219,2]
[425931911,1782037872000,-500.0,0.00028219,2]
[425931912,1782037872000,-500.0,0.00028219,2]
[425931921,1782037872000,-1696.94,0.00028219,2]
[425931918,1782037872000,-552.83384068,0.00028219,2]
[425931924,1782037872000,-500.0,0.00028219,2]
[425931916,1782037872000,-832.36,0.00028219,2]
[425931922,1782037872000,-500.0,0.00028219,2]
[425931917,1782037872000,-500.0,0.00028219,2]
[425931920,1782037872000,-942.63,0.00028219,2]
[425931923,1782037872000,-2636.35,0.00028219,2]
[425931898,1782037872000,-500.0,0.00028219,2]
[425931896,1782037872000,-500.0,0.00028219,2]
[425931919,1782037872000,-829.45,0.00028219,2]
[425931899,1782037872000,-4065.24,0.00028219,2]
[425931893,1782037872000,-4989.66,0.00028219,2]
[425931871,1782037872000,-500.0,0.00028219,2]
[425931872,1782037872000,-650.62,0.00028219,2]
[425931925,1782037872000,-500.0,0.00028219,2]
[425931879,1782037872000,-500.0,0.00028219,2]
[425931873,1782037872000,-500.0,0.00028219,2]
[425931875,1782037872000,-500.0,0.00028219,2]
[425931878,1782037872000,-3267.69,0.00028219,2]
[425931876,1782037872000,-1025.47,0.00028219,2]
[425931874,1782037872000,-582.18,0.00028219,2]
[425931877,1782037872000,-500.0,0.00028219,2]
[425931880,1782037872000,-622.11459867,0.00028219,2]
[425931881,1782037872000,-500.0,0.00028219,2]
[425931868,1782037872000,-500.0,0.00028219,2]
[425931882,1782037872000,-500.0,0.00028219,2]
[425931883,1782037872000,-6815.25,0.00028219,2]
[425931897,1782037872000,-500.0,0.00028219,2]
[425931888,1782037872000,-4316.99,0.00028219,2]
[425931891,1782037872000,-500.0,0.00028219,2]
[425931890,1782037872000,-682.33,0.00028219,2]
[425931894,1782037872000,-6422.86,0.00028219,2]
[425931889,1782037872000,-500.0,0.00028219,2]
[425931887,1782037872000,-500.0,0.00028219,2]
[425931885,1782037872000,-526.21,0.00028219,2]
[425931886,1782037872000,-500.0,0.00028219,2]
[425931884,1782037872000,-8068.87,0.00028219,2]
[425931892,1782037872000,-500.0,0.00028219,2]
[425931953,1782037873000,-591.0,0.00028291,2]
[425931956,1782037873000,-200.0,0.00028291,2]
[425931964,1782037873000,-200.0,0.00028291,2]
[425931962,1782037873000,-200.0,0.00028291,2]
[425931961,1782037873000,-200.0,0.00028291,2]
[425931957,1782037873000,-200.0,0.00028291,2]
[425931959,1782037873000,-200.0,0.00028291,2]
[425931963,1782037873000,-200.0,0.00028291,2]
[425931960,1782037873000,-200.0,0.00028291,2]
[425931958,1782037873000,-200.0,0.00028291,2]
[425931975,1782037873000,-200.0,0.00028291,2]
[425931965,1782037873000,-200.0,0.00028291,2]
[425931967,1782037873000,-200.0,0.00028291,2]
[425931968,1782037873000,-200.0,0.00028291,2]
[425931955,1782037873000,-200.0,0.00028291,2]
[425931972,1782037873000,-200.0,0.00028291,2]
[425931973,1782037873000,-200.0,0.00028291,2]
[425931971,1782037873000,-200.0,0.00028291,2]
[425931969,1782037873000,-200.0,0.00028291,2]
[425931970,1782037873000,-200.0,0.00028291,2]
[425931974,1782037873000,-200.0,0.00028291,2]
[425931977,1782037873000,-200.0,0.00028291,2]
[425931966,1782037873000,-200.0,0.00028291,2]
[425931952,1782037873000,-500.0,0.00028291,2]
[425931947,1782037873000,-500.0,0.00028291,2]
[425931942,1782037873000,-500.0,0.00028291,2]
[425931976,1782037873000,-200.0,0.00028291,2]
[425931927,1782037873000,-597.79,0.00028219,2]
[425931929,1782037873000,-4259.26,0.00028219,2]
[425931928,1782037873000,-500.0,0.00028219,2]
[425931931,1782037873000,-500.0,0.00028219,2]
[425931933,1782037873000,-338.12997869,0.00028219,2]
[425931930,1782037873000,-508.83,0.00028219,2]
[425931934,1782037873000,-537.35,0.00028219,2]
[425931926,1782037873000,-500.0,0.00028219,2]
[425931932,1782037873000,-2524.57,0.00028219,2]
[425931935,1782037873000,-500.0,0.00028219,2]
[425931936,1782037873000,-3061.09,0.00028219,2]
[425931938,1782037873000,-5236.41,0.00028219,2]
[425931940,1782037873000,-151.0,0.00028267,2]
[425931951,1782037873000,-500.0,0.00028291,2]
[425931950,1782037873000,-500.0,0.00028291,2]
[425931939,1782037873000,-14573.2893316,0.00028223,2]
[425931941,1782037873000,-500.0,0.00028291,2]
[425931945,1782037873000,-500.0,0.00028291,2]
[425931943,1782037873000,-500.0,0.00028291,2]
[425931946,1782037873000,-500.0,0.00028291,2]
[425931944,1782037873000,-500.0,0.00028291,2]
[425931949,1782037873000,-500.0,0.00028291,2]
[425931948,1782037873000,-500.0,0.00028291,2]
[425931937,1782037873000,-860.38,0.00028219,2]
[425931979,1782037873000,-200.0,0.00028291,2]
[425931978,1782037873000,-200.0,0.00028291,2]
[425932006,1782037873000,-175.0,0.00028466,2]
[425932004,1782037873000,-222.82,0.00028413,2]
[425932011,1782037873000,-5328.39,0.00028492,2]
[425932013,1782037873000,-4510.31,0.00028492,2]
[425932012,1782037873000,-3324.04,0.00028492,2]
[425932017,1782037873000,-500.0,0.00028492,2]
[425932015,1782037873000,-698.7,0.00028492,2]
[425932014,1782037873000,-7986.83,0.00028492,2]
[425932018,1782037873000,-4096.63,0.00028492,2]
[425932021,1782037873000,-4086.22,0.00028492,2]
[425932019,1782037873000,-9938.39,0.00028492,2]
[425932020,1782037873000,-500.0,0.00028492,2]
[425932023,1782037873000,-6020.43,0.00028492,2]
[425932022,1782037873000,-8988.97,0.00028492,2]
[425932024,1782037873000,-500.0,0.00028492,2]
[425932029,1782037873000,-500.0,0.00028492,2]